fUST/lending_fUST_20260607
["ID","MTS","AMOUNT","RATE_DAILY","PERIOD"]
[424364707,1780786247000,-294.691009,0.00034,7]
[424364714,1780786247000,-3742.30632151,0.00034,7]
[424364710,1780786247000,-8197.312105,0.00034,7]
[424364708,1780786247000,-294.691009,0.00034,7]
[424364713,1780786247000,-151.0,0.00034,7]
[424364711,1780786247000,-8197.312105,0.00034,7]
[424364706,1780786247000,-294.691009,0.00034,7]
[424364709,1780786247000,-294.691009,0.00034,7]
[424364700,1780786247000,-239.001564,0.00034,7]
[424364686,1780786247000,-958.309261,0.00034,7]
[424364688,1780786247000,-958.309261,0.00034,7]
[424364689,1780786247000,-958.309261,0.00034,7]
[424364658,1780786247000,-335.370815,0.00034,7]
[424364661,1780786247000,-280.405485,0.00034,7]
[424364659,1780786247000,-151.0,0.00034,7]
[424364657,1780786247000,-335.370815,0.00034,7]
[424364663,1780786247000,-280.405485,0.00034,7]
[424364660,1780786247000,-280.405485,0.00034,7]
[424364665,1780786247000,-895.36437,0.00034,7]
[424364662,1780786247000,-280.405485,0.00034,7]
[424364684,1780786247000,-958.309261,0.00034,7]
[424364667,1780786247000,-895.36437,0.00034,7]
[424364668,1780786247000,-1391.378277,0.00034,7]
[424364669,1780786247000,-1391.378277,0.00034,7]
[424364670,1780786247000,-1391.378277,0.00034,7]
[424364664,1780786247000,-895.36437,0.00034,7]
[424364672,1780786247000,-205.839377,0.00034,7]
[424364682,1780786247000,-2157.801183,0.00034,7]
[424364671,1780786247000,-1391.378277,0.00034,7]
[424364680,1780786247000,-2157.801183,0.00034,7]
[424364681,1780786247000,-157.166577,0.00034,7]
[424364675,1780786247000,-205.839377,0.00034,7]
[424364683,1780786247000,-2157.801183,0.00034,7]
[424364676,1780786247000,-157.166577,0.00034,7]
[424364674,1780786247000,-157.166577,0.00034,7]
[424364678,1780786247000,-205.839377,0.00034,7]
[424364679,1780786247000,-157.166577,0.00034,7]
[424364673,1780786247000,-205.839377,0.00034,7]
[424364677,1780786247000,-2157.801183,0.00034,7]
[424364723,1780786248000,-165.742637,0.000332,2]
[424364715,1780786248000,-497.92914224,0.00034,7]
[424364717,1780786248000,-3596.02417949,0.00022366,2]
[424364716,1780786248000,-1779.32204679,0.00022366,2]
[424364718,1780786248000,-164.081726,0.000309,7]
[424364719,1780786248000,-165.742637,0.000309,2]
[424364725,1780786248000,-165.742637,0.000332,2]
[424364720,1780786248000,-165.742637,0.000309,2]
[424364726,1780786248000,-1149.03554799,0.00034,7]
[424364729,1780786248000,-151.0,0.00034,7]
[424364721,1780786248000,-165.742637,0.000319,2]
[424364731,1780786248000,-151.0,0.00034,7]
[424364733,1780786248000,-5722.95809146,0.00034,7]
[424364730,1780786248000,-151.0,0.00034,7]
[424364722,1780786248000,-165.742637,0.000319,2]
[424364728,1780786248000,-151.0,0.00034,7]
[424364727,1780786248000,-2808.04109326,0.00034,7]
[424364724,1780786248000,-165.742637,0.000332,2]
[424364732,1780786248000,-151.0,0.00034,7]
[424364735,1780786568000,197.9673449,0.00024683,120]
[424364740,1780787145000,-357.26982633,0.0001826,2]
[424364754,1780787432000,-300.0,0.00019589,3]
[424364743,1780787432000,-482.95336792,0.0001754,2]
[424364745,1780787432000,-357.26982633,0.00017717,2]
[424364744,1780787432000,-4517.04663208,0.0001754,2]
[424364749,1780787432000,-162.2,0.00018904,2]
[424364747,1780787432000,-162.2,0.0001863,2]
[424364751,1780787432000,-162.2,0.00019178,2]
[424364752,1780787432000,-162.2,0.00019452,2]
[424364753,1780787432000,-151.0,0.00019523,2]
[424364755,1780787432000,-162.2,0.00019726,2]
[424364750,1780787432000,-300.0,0.00019178,2]
[424364757,1780787432000,-162.2,0.00020274,2]
[424364756,1780787432000,-162.2,0.0002,2]
[424364767,1780787432000,-900.0,0.00022061,30]
[424364766,1780787432000,-25.18281355,0.00022061,30]
[424364762,1780787432000,-162.2,0.00021644,2]
[424364763,1780787432000,-1837.0,0.00021812,2]
[424364765,1780787432000,-162.2,0.00021918,2]
[424364758,1780787432000,-162.2,0.00020548,2]
[424364761,1780787432000,-162.2,0.0002137,2]
[424364760,1780787432000,-162.2,0.00021096,2]
[424364764,1780787432000,-2205.0,0.00021812,2]
[424364759,1780787432000,-162.2,0.00020822,2]
[424364787,1780787438000,-444.0,0.00025261,2]
[424364779,1780787438000,-922.69363422,0.00024683,120]
[424364785,1780787438000,-1297.4325772,0.00025168,2]
[424364789,1780787438000,-270.80104698,0.00027397,2]
[424364786,1780787438000,-185.0,0.00025261,2]
[424364784,1780787438000,-306.371695,0.00025149,2]
[424364783,1780787438000,-351.101,0.00024812,8]
[424364778,1780787438000,-318.55968363,0.00024683,120]
[424364781,1780787438000,-457.0,0.000248,2]
[424364782,1780787438000,-1837.0,0.00024812,2]
[424364769,1780787438000,-162.2,0.00022192,2]
[424364777,1780787438000,-151.0,0.00024683,6]
[424364776,1780787438000,-176.888818,0.00024458,2]
[424364775,1780787438000,-501.884742,0.00023989,2]
[424364773,1780787438000,-422.60203447,0.00023,2]
[424364771,1780787438000,-444.0,0.00022261,2]
[424364770,1780787438000,-185.0,0.00022261,2]
[424364772,1780787438000,-162.26,0.00022466,2]
[424364768,1780787438000,-74.81718645,0.00022061,30]
[424364788,1780787438000,-150.4450261,0.00027397,2]
[424364780,1780787438000,-830.54617014,0.00024683,120]
[424364791,1780787438000,-185.0,0.00028261,2]
[424364774,1780787438000,-1577.39796553,0.00023,2]
[424364792,1780787438000,-444.0,0.00028261,2]
[424364790,1780787438000,-709.509,0.00027812,2]
[424364811,1780787438000,-600.0,0.00030599,30]
[424364813,1780787438000,-1100.07862943,0.000309,120]
[424364812,1780787438000,-179.72314227,0.000309,120]
[424364809,1780787438000,-745.56367369,0.0003,120]
[424364804,1780787438000,-1406.89561938,0.0003,120]
[424364806,1780787438000,-216.2349099,0.0003,120]
[424364808,1780787438000,-359.71846325,0.0003,120]
[424364805,1780787438000,-546.03458271,0.0003,120]
[424364807,1780787438000,-812.77393655,0.0003,120]
[424364810,1780787438000,-1979.29472548,0.0003,120]
[424364801,1780787438000,-894.29137986,0.0003,120]
[424364800,1780787438000,-327.74096996,0.0003,120]
[424364802,1780787438000,-491.67648711,0.0003,120]
[424364799,1780787438000,-278.94981158,0.0003,120]
[424364798,1780787438000,-985.80966342,0.0003,120]
[424364796,1780787438000,-1100.07862943,0.0003,120]
[424364797,1780787438000,-561.18717782,0.0003,120]
[424364795,1780787438000,-179.72314227,0.0003,120]
[424364803,1780787438000,-981.71649953,0.0003,120]
[424364793,1780787438000,-176.888818,0.00029606,2]
[424364794,1780787438000,-4534.6902119,0.000299,2]
[424364859,1780787439000,-491.67648711,0.000328,120]
[424364861,1780787439000,-981.71649953,0.000328,120]
[424364863,1780787439000,-546.03458271,0.000328,120]
[424364862,1780787439000,-1406.89561938,0.000328,120]
[424364858,1780787439000,-327.74096996,0.000328,120]
[424364853,1780787439000,-179.72314227,0.000328,120]
[424364856,1780787439000,-985.80966342,0.000328,120]
[424364854,1780787439000,-1100.07862943,0.000328,120]
[424364852,1780787439000,-186.53,0.00032634,2]
[424364851,1780787439000,-186.29,0.00032422,2]
[424364857,1780787439000,-278.94981158,0.000328,120]
[424364850,1780787439000,-160.0,0.00032302,2]
[424364855,1780787439000,-561.18717782,0.000328,120]
[424364860,1780787439000,-894.29137986,0.000328,120]
[424364877,1780787439000,-37430.15445081,0.000332,117]
[424364865,1780787439000,-812.77393655,0.000328,120]
[424364876,1780787439000,-37430.15445081,0.000332,117]
[424364875,1780787439000,-37430.15445082,0.000332,117]
[424364871,1780787439000,-209.95321527,0.00032877,2]
[424364874,1780787439000,-157.71973597,0.000331,2]
[424364873,1780787439000,-500.0,0.00032877,12]
[424364878,1780787439000,-196.25,0.00033393,3]
[424364864,1780787439000,-216.2349099,0.000328,120]
[424364846,1780787439000,-17430.4352497,0.00032012,2]
[424364872,1780787439000,-500.0,0.00032877,10]
[424364870,1780787439000,-471.00631204,0.00032876,120]
[424364869,1780787439000,-187.01,0.00032838,2]
[424364868,1780787439000,-1979.29472548,0.000328,120]
[424364867,1780787439000,-745.56367369,0.000328,120]
[424364866,1780787439000,-359.71846325,0.000328,120]
[424364879,1780787439000,-4534.69021183,0.00033442,2]
[424364848,1780787439000,-3074.7067676,0.00032012,2]
[424364830,1780787439000,-179.72314227,0.000318,120]
[424364847,1780787439000,-157.3483903,0.00032012,2]
[424364825,1780787439000,-359.71846325,0.000309,120]
[424364827,1780787439000,-1979.29472548,0.000309,120]
[424364823,1780787439000,-216.2349099,0.000309,120]
[424364821,1780787439000,-1406.89561938,0.000309,120]
[424364822,1780787439000,-546.03458271,0.000309,120]
[424364824,1780787439000,-812.77393655,0.000309,120]
[424364829,1780787439000,-185.0,0.00031261,2]
[424364819,1780787439000,-491.67648711,0.000309,120]
[424364817,1780787439000,-327.74096996,0.000309,120]
[424364818,1780787439000,-894.29137986,0.000309,120]
[424364816,1780787439000,-278.94981158,0.000309,120]
[424364815,1780787439000,-985.80966342,0.000309,120]
[424364814,1780787439000,-561.18717782,0.000309,120]
[424364880,1780787439000,-720.0,0.00033659,30]
[424364820,1780787439000,-981.71649953,0.000309,120]
[424364849,1780787439000,-160.0,0.00032292,2]
[424364828,1780787439000,-187.94883822,0.00031161,2]
[424364831,1780787439000,-1100.07862943,0.000318,120]
[424364844,1780787439000,-745.56367369,0.000318,120]
[424364845,1780787439000,-1979.29472548,0.000318,120]
[424364843,1780787439000,-359.71846325,0.000318,120]
[424364842,1780787439000,-812.77393655,0.000318,120]
[424364838,1780787439000,-981.71649953,0.000318,120]
[424364839,1780787439000,-1406.89561938,0.000318,120]
[424364826,1780787439000,-745.56367369,0.000309,120]
[424364840,1780787439000,-546.03458271,0.000318,120]
[424364836,1780787439000,-491.67648711,0.000318,120]
[424364832,1780787439000,-561.18717782,0.000318,120]
[424364835,1780787439000,-327.74096996,0.000318,120]
[424364837,1780787439000,-894.29137986,0.000318,120]
[424364834,1780787439000,-278.94981158,0.000318,120]
[424364833,1780787439000,-985.80966342,0.000318,120]
[424364841,1780787439000,-216.2349099,0.000318,120]
[424364881,1780787439000,-1100.07862943,0.000338,120]
[424364891,1780787439000,-216.2349099,0.000338,120]
[424364882,1780787439000,-561.18717782,0.000338,120]
[424364920,1780787439000,-151.0,0.00034,7]
[424364919,1780787439000,-151.0,0.00034,7]
[424364922,1780787439000,-292.0,0.00034,7]
[424364924,1780787439000,-185.0,0.00034261,2]
[424364925,1780787439000,-162.16502655,0.00034356,7]
[424364923,1780787439000,-355.0,0.00034246,2]
[424364926,1780787439000,-355.0,0.0003452,3]
[424364927,1780787439000,-162.16502655,0.0003463,7]
[424364928,1780787439000,-198.41,0.00034661,3]
[424364929,1780787439000,-1399.64183789,0.00034728,12]
[424364934,1780787439000,-1406.89561938,0.000348,120]
[424364931,1780787439000,-355.0,0.00034794,4]
[424364930,1780787439000,-475.63604884,0.0003477,120]
[424364933,1780787439000,-1100.07862943,0.000348,120]
[424364932,1780787439000,-557.0,0.000348,120]
[424364935,1780787439000,-214.76,0.00034835,3]
[424364938,1780787439000,-10836.36847472,0.00035,2]
[424364950,1780787439000,-355.0,0.00035616,7]
[424364947,1780787439000,-162.16502655,0.00035178,7]
[424364883,1780787439000,-985.80966342,0.000338,120]
[424364943,1780787439000,-250.0,0.00035,14]
[424364946,1780787439000,-355.0,0.00035068,5]
[424364948,1780787439000,-355.0,0.00035342,6]
[424364914,1780787439000,-151.0,0.00034,7]
[424364944,1780787439000,-5593.0,0.00035,120]
[424364942,1780787439000,-1050.0,0.00035,120]
[424364941,1780787439000,-713.216182,0.00035,120]
[424364940,1780787439000,-221.89436795,0.00035,30]
[424364937,1780787439000,-162.16502655,0.00034904,7]
[424364939,1780787439000,-4188.12458809,0.00035,120]
[424364936,1780787439000,-212.91,0.00034835,3]
[424364945,1780787439000,-160.0,0.00035,3]
[424364916,1780787439000,-151.0,0.00034,7]
[424364949,1780787439000,-162.16502655,0.00035452,7]
[424364921,1780787439000,-151.0,0.00034,7]
[424364917,1780787439000,-151.0,0.00034,7]
[424364884,1780787439000,-278.94981158,0.000338,120]
[424364886,1780787439000,-491.67648711,0.000338,120]
[424364888,1780787439000,-981.71649953,0.000338,120]
[424364887,1780787439000,-894.29137986,0.000338,120]
[424364889,1780787439000,-1406.89561938,0.000338,120]
[424364892,1780787439000,-812.77393655,0.000338,120]
[424364890,1780787439000,-546.03458271,0.000338,120]
[424364893,1780787439000,-359.71846325,0.000338,120]
[424364894,1780787439000,-745.56367369,0.000338,120]
[424364895,1780787439000,-1979.29472548,0.000338,120]
[424364896,1780787439000,-197.25,0.0003398,3]
[424364898,1780787439000,-156.587,0.00033999,31]
[424364897,1780787439000,-151.0,0.00033999,31]
[424364899,1780787439000,-158.00503947,0.00033999,32]
[424364885,1780787439000,-327.74096996,0.000338,120]
[424364901,1780787439000,-158.00503947,0.00033999,32]
[424364902,1780787439000,-2036.74689206,0.00033999,31]
[424364918,1780787439000,-151.0,0.00034,7]
[424364913,1780787439000,-500.0,0.00033999,14]
[424364911,1780787439000,-229.60541135,0.00033999,14]
[424364907,1780787439000,-151.0,0.00033999,30]
[424364909,1780787439000,-500.0,0.00033999,32]
[424364912,1780787439000,-500.0,0.00033999,31]
[424364908,1780787439000,-151.0,0.00033999,30]
[424364906,1780787439000,-151.0,0.00033999,29]
[424364910,1780787439000,-151.0,0.00033999,14]
[424364900,1780787439000,-162.380719,0.00033999,14]
[424364915,1780787439000,-151.0,0.00034,7]
[424364905,1780787439000,-151.0,0.00033999,32]
[424364904,1780787439000,-698.73395357,0.00033999,31]
[424364903,1780787439000,-158.00503949,0.00033999,14]
[424365014,1780787440000,-10000.0,0.00039,120]
[424364997,1780787440000,-168.0,0.00038,30]
[424364988,1780787440000,-21447.01307626,0.00038,120]
[424364981,1780787440000,-185.0,0.00037261,2]
[424364985,1780787440000,-355.0,0.00037808,15]
[424364987,1780787440000,-157.71973597,0.000379,2]
[424364990,1780787440000,-124550.63154401,0.00038,120]
[424364991,1780787440000,-163.80025392,0.00038,2]
[424364992,1780787440000,-1000.0,0.00038,120]
[424364993,1780787440000,-4578.26381742,0.00038,120]
[424364996,1780787440000,-168.0,0.00038,14]
[424364995,1780787440000,-168.0,0.00038,7]
[424364986,1780787440000,-29087.46791586,0.0003784,120]
[424365006,1780787440000,-324.84195916,0.0003867,120]
[424364999,1780787440000,-800.0,0.00038,120]
[424365002,1780787440000,-355.0,0.00038082,16]
[424365000,1780787440000,-1100.07862943,0.00038,120]
[424364998,1780787440000,-10000.0,0.00038,120]
[424365001,1780787440000,-1406.89561938,0.00038,120]
[424365004,1780787440000,-501.0,0.000385,120]
[424365007,1780787440000,-200.0,0.000388,120]
[424365005,1780787440000,-355.0,0.0003863,18]
[424365008,1780787440000,-2518.98,0.000388,90]
[424365010,1780787440000,-355.0,0.00038904,19]
[424365011,1780787440000,-500.0,0.00039,120]
[424365012,1780787440000,-13000.64741527,0.00039,120]
[424364984,1780787440000,-1027.09334974,0.000378,2]
[424365003,1780787440000,-355.0,0.00038356,17]
[424364983,1780787440000,-355.0,0.00037534,14]
[424364963,1780787440000,-268.53403278,0.0003624,2]
[424364979,1780787440000,-864.0,0.00037025,30]
[424364953,1780787440000,-1100.07862943,0.000358,120]
[424364952,1780787440000,-162.16502655,0.00035726,7]
[424364951,1780787440000,-200.2,0.00035616,120]
[424364954,1780787440000,-1406.89561938,0.000358,120]
[424364961,1780787440000,-355.0,0.00036164,9]
[424364962,1780787440000,-206.46283378,0.0003621,2]
[424364956,1780787440000,-160.0,0.00036,7]
[424364955,1780787440000,-355.0,0.0003589,8]
[424364958,1780787440000,-10000.0,0.00036,120]
[424364957,1780787440000,-1000.0,0.00036,120]
[424364959,1780787440000,-1000.0,0.00036,120]
[424364960,1780787440000,-162.16502655,0.00036,7]
[424364964,1780787440000,-355.0,0.00036438,10]
[424364982,1780787440000,-4284.8994277,0.000375,120]
[424364965,1780787440000,-152.71849347,0.000365,120]
[424364969,1780787440000,-1100.07862943,0.000369,120]
[424364970,1780787440000,-1406.89561938,0.000369,120]
[424364966,1780787440000,-355.0,0.00036712,11]
[424364968,1780787440000,-3568.88,0.000368,90]
[424364971,1780787440000,-4534.69021183,0.00036984,2]
[424364972,1780787440000,-355.0,0.00036986,12]
[424364973,1780787440000,-2055.31537929,0.00037,2]
[424364974,1780787440000,-1000.0,0.00037,120]
[424364975,1780787440000,-10000.0,0.00037,120]
[424364977,1780787440000,-374.21109948,0.00037,120]
[424364976,1780787440000,-14000.0,0.00037,30]
[424364978,1780787440000,-1000.0,0.00037,120]
[424364980,1780787440000,-355.0,0.0003726,13]
[424364967,1780787440000,-37430.15445081,0.00036761,120]
[424365009,1780787440000,-44177.88530261,0.00038875,120]
[424365044,1780787440000,-151.0,0.000398,120]
[424365013,1780787440000,-5873.76337812,0.00039,120]
[424365052,1780787440000,-207.289642,0.000398,120]
[424365050,1780787440000,-151.0,0.000398,120]
[424365051,1780787440000,-151.0,0.000398,120]
[424365054,1780787440000,-207.289642,0.000398,120]
[424365053,1780787440000,-207.289642,0.000398,120]
[424365055,1780787440000,-151.0,0.000398,120]
[424365057,1780787440000,-151.0,0.000398,120]
[424365059,1780787440000,-151.0,0.000398,120]
[424365056,1780787440000,-207.289642,0.000398,120]
[424365060,1780787440000,-151.0,0.000398,120]
[424365061,1780787440000,-151.0,0.000398,120]
[424365062,1780787440000,-151.0,0.000398,120]
[424365064,1780787440000,-305.347279,0.000398,120]
[424365063,1780787440000,-151.0,0.000398,120]
[424365065,1780787440000,-3696.861079,0.000398,120]
[424365067,1780787440000,-3696.861079,0.000398,120]
[424365066,1780787440000,-305.347279,0.000398,120]
[424365068,1780787440000,-305.347279,0.000398,120]
[424365070,1780787440000,-305.347279,0.000398,120]
[424365069,1780787440000,-3696.861079,0.000398,120]
[424365072,1780787440000,-151.0,0.000398,7]
[424365073,1780787440000,-151.0,0.000398,120]
[424365071,1780787440000,-3696.861079,0.000398,120]
[424365076,1780787440000,-163.502324,0.000398,120]
[424365075,1780787440000,-163.502324,0.000398,120]
[424365074,1780787440000,-163.502324,0.000398,120]
[424365016,1780787440000,-1406.89561938,0.000391,120]
[424365049,1780787440000,-151.0,0.000398,120]
[424365046,1780787440000,-151.0,0.000398,120]
[424365058,1780787440000,-151.0,0.000398,120]
[424365045,1780787440000,-151.0,0.000398,120]
[424365015,1780787440000,-1100.07862943,0.000391,120]
[424365020,1780787440000,-275.95809,0.000392,21]
[424365018,1780787440000,-301.6591,0.000392,120]
[424365019,1780787440000,-229.14761478,0.000392,30]
[424365022,1780787440000,-2007.32588124,0.000395,120]
[424365023,1780787440000,-1600.0,0.000395,120]
[424365025,1780787440000,-355.0,0.00039726,22]
[424365021,1780787440000,-355.0,0.00039452,21]
[424365024,1780787440000,-158.58499038,0.000395,14]
[424365026,1780787440000,-3687.21869604,0.000398,120]
[424365028,1780787440000,-151.0,0.000398,120]
[424365027,1780787440000,-350075.04004909,0.000398,30]
[424365029,1780787440000,-151.0,0.000398,120]
[424365030,1780787440000,-299.484343,0.000398,120]
[424365017,1780787440000,-355.0,0.00039178,20]
[424365031,1780787440000,-151.0,0.000398,120]
[424365047,1780787440000,-151.0,0.000398,120]
[424365043,1780787440000,-151.0,0.000398,120]
[424365042,1780787440000,-178.011236,0.000398,120]
[424365040,1780787440000,-151.0,0.000398,120]
[424365041,1780787440000,-178.011236,0.000398,120]
[424365038,1780787440000,-178.011236,0.000398,120]
[424365039,1780787440000,-178.011236,0.000398,120]
[424365032,1780787440000,-151.0,0.000398,120]
[424365037,1780787440000,-151.0,0.000398,120]
[424365034,1780787440000,-151.0,0.000398,120]
[424365036,1780787440000,-151.0,0.000398,120]
[424365048,1780787440000,-151.0,0.000398,120]
[424365033,1780787440000,-151.0,0.000398,120]
[424365098,1780787441000,-151.0,0.000398,120]
[424365095,1780787441000,-333.328241,0.000398,120]
[424365097,1780787441000,-333.328241,0.000398,120]
[424365096,1780787441000,-151.0,0.000398,120]
[424365101,1780787441000,-151.0,0.000398,120]
[424365100,1780787441000,-151.0,0.000398,120]
[424365099,1780787441000,-333.328241,0.000398,120]
[424365102,1780787441000,-211.276706,0.000398,120]
[424365104,1780787441000,-211.276706,0.000398,120]
[424365105,1780787441000,-211.276706,0.000398,120]
[424365094,1780787441000,-151.0,0.000398,120]
[424365103,1780787441000,-151.0,0.000398,120]
[424365092,1780787441000,-151.0,0.000398,120]
[424365087,1780787441000,-151.0,0.000398,120]
[424365090,1780787441000,-151.0,0.000398,120]
[424365091,1780787441000,-151.0,0.000398,2]
[424365088,1780787441000,-151.0,0.000398,120]
[424365089,1780787441000,-151.0,0.000398,2]
[424365085,1780787441000,-151.0,0.000398,120]
[424365106,1780787441000,-211.276706,0.000398,120]
[424365086,1780787441000,-151.0,0.000398,120]
[424365084,1780787441000,-686.419927,0.000398,120]
[424365083,1780787441000,-151.0,0.000398,30]
[424365081,1780787441000,-686.419927,0.000398,120]
[424365078,1780787441000,-686.419927,0.000398,120]
[424365080,1780787441000,-686.419927,0.000398,120]
[424365079,1780787441000,-189.560251,0.000398,120]
[424365077,1780787441000,-163.502324,0.000398,120]
[424365093,1780787441000,-333.328241,0.000398,120]
[424365110,1780787441000,-459.484393,0.000398,120]
[424365107,1780787441000,-459.484393,0.000398,120]
[424365109,1780787441000,-459.484393,0.000398,120]
[424365140,1780787441000,-469.07870949,0.0004,120]
[424365137,1780787441000,-4797.03234067,0.0004,120]
[424365138,1780787441000,-5000.0,0.0002931,2]
[424365136,1780787441000,-19493.19842308,0.0004,120]
[424365139,1780787441000,-1871.39000822,0.0004,120]
[424365135,1780787441000,-19982.84084534,0.0004,120]
[424365108,1780787441000,-459.484393,0.000398,120]
[424365134,1780787441000,-654914.31753249,0.0004,120]
[424365131,1780787441000,-1168.62397,0.000398,120]
[424365132,1780787441000,-4806.15925149,0.000399,2]
[424365130,1780787441000,-1168.62397,0.000398,120]
[424365127,1780787441000,-1168.62397,0.000398,120]
[424365129,1780787441000,-151.0,0.000398,120]
[424365126,1780787441000,-151.0,0.000398,7]
[424365128,1780787441000,-1168.62397,0.000398,120]
[424365133,1780787441000,-1000.0,0.0004,120]
[424365123,1780787441000,-210.907958,0.000398,120]
[424365124,1780787441000,-210.907958,0.000398,120]
[424365112,1780787441000,-151.0,0.000398,120]
[424365113,1780787441000,-151.0,0.000398,120]
[424365111,1780787441000,-151.0,0.000398,120]
[424365116,1780787441000,-151.0,0.000398,120]
[424365115,1780787441000,-151.0,0.000398,120]
[424365114,1780787441000,-151.0,0.000398,120]
[424365118,1780787441000,-151.0,0.000398,120]
[424365119,1780787441000,-151.0,0.000398,120]
[424365120,1780787441000,-151.0,0.000398,120]
[424365122,1780787441000,-210.907958,0.000398,120]
[424365121,1780787441000,-151.0,0.000398,120]
[424365125,1780787441000,-210.907958,0.000398,120]
[424365117,1780787441000,-151.0,0.000398,120]
[424365156,1780787447000,-16713.79041646,0.0004,120]
[424365177,1780788631000,-562.72932898,0.00019999,2]
[424365175,1780788631000,-500.0,0.00019999,2]
[424365176,1780788631000,-602.78416508,0.00019999,2]
[424365174,1780788631000,-280.88,0.000196,2]
[424365182,1780788631000,-2575.91413387,0.0002,2]
[424365178,1780788631000,-272.26906563,0.00019999,2]
[424365181,1780788631000,-804.56586613,0.0002,2]
[424365179,1780788631000,-3946.37737193,0.0002,2]
[424365180,1780788631000,-1045.8101247,0.0002,2]
[424365258,1780788637000,-161.94532871,0.0002,2]
[424365256,1780788637000,-1000.0,0.0002,2]
[424365254,1780788637000,-205.32240027,0.0002,2]
[424365246,1780788637000,-8037.99225878,0.0002,2]
[424365252,1780788637000,-455.0539919,0.0002,2]
[424365248,1780788637000,-14891.48744717,0.0002,2]
[424365250,1780788637000,-376.35100431,0.0002,2]
[424365260,1780788638000,-604315.05739513,0.0002,2]
[424366307,1780788646000,-1150.08766105,0.0002,2]
[424366309,1780788646000,-302.0,0.0002,2]
[424366384,1780788770000,-151.0,0.000194,2]
[424366387,1780789686000,10000.0,0.00023288,120]
[424366388,1780789694000,10000.0,0.00023288,120]
[424366389,1780789704000,10000.0,0.00023288,120]
[424366390,1780789736000,4000.0,0.00023288,120]
[424366393,1780789757000,-317.35330373,0.0001376,2]
[424366392,1780789757000,-151.0,0.00013482,2]
[424366394,1780789773000,-488.25467534,0.00013347,2]
[424366408,1780789833000,-819.49786276,0.00013214,2]
[424366407,1780789833000,-151.0,0.00012818,2]
[424366409,1780789833000,-1071.458,0.00013214,2]
[424366410,1780789833000,-1237.30973074,0.00013214,2]
[424366411,1780789833000,-274.24289103,0.00013214,2]
[424366470,1780789838000,-168.7403039,0.00017716,2]
[424366468,1780789838000,-3555.901307,0.00017693,2]
[424366466,1780789838000,-6485.0005758,0.00016921,2]
[424366464,1780789838000,-1000.0,0.00016792,2]
[424366475,1780789838000,-306.3716957,0.00017967,2]
[424366473,1780789838000,-250.07286682,0.00017945,2]
[424366452,1780789838000,-437.67663812,0.00013214,2]
[424366458,1780789838000,-300.0,0.00013759,2]
[424366460,1780789838000,-300.0,0.00013759,2]
[424366456,1780789838000,-2639.54008468,0.00013347,2]
[424366453,1780789838000,-382.64836188,0.00013347,2]
[424366479,1780789838000,-500.0,0.00018162,2]
[424366462,1780789838000,-4682.64669627,0.0001376,2]
[424366480,1780789838000,-271.94891556,0.00018162,2]
[424366477,1780789838000,-444.9776906,0.00018162,2]